[Event "*** Titled Tuesday 3|2 Blitz"]
[Site "Chess.com"]
[Date "2016.08.02"]
[Round "2"]
[White "Aragon"]
[Black "saraswathii"]
[Result "0-1"]
[WhiteElo "2076"]
[BlackElo "2102"]
[TimeControl "180+2"]
[EndTime "11:23:05 PDT"]
[Termination "saraswathii won by checkmate"]

1. e4 {[%clk 0:03:01.9]} 1... c5 {[%clk 0:02:52.5]} 2. Nf3 {[%clk 0:02:59.5]}
2... e6 {[%clk 0:02:51]} 3. d4 {[%clk 0:02:58.8]} 3... cxd4 {[%clk 0:02:51.9]}
4. Nxd4 {[%clk 0:03:00.3]} 4... Nf6 {[%clk 0:02:52.5]} 5. Nc3 {[%clk 0:03:01.5]}
5... Nc6 {[%clk 0:02:53]} 6. Nb3 {[%clk 0:02:59.3]} 6... Bb4 {[%clk 0:02:53.6]}
7. Bd3 {[%clk 0:02:55.2]} 7... d5 {[%clk 0:02:54.2]} 8. exd5 {[%clk 0:02:52.1]}
8... Nxd5 {[%clk 0:02:53.8]} 9. O-O {[%clk 0:02:48.2]} 9... Nxc3 {[%clk
0:02:53]} 10. bxc3 {[%clk 0:02:48.9]} 10... Bxc3 {[%clk 0:02:54.9]} 11. Ba3
{[%clk 0:02:50]} 11... Bb4 {[%clk 0:02:44.6]} 12. Bxb4 {[%clk 0:02:44.3]} 12...
Nxb4 {[%clk 0:02:46.5]} 13. Qg4 {[%clk 0:02:45.2]} 13... Nd5 {[%clk 0:02:28.1]}
14. Qxg7 {[%clk 0:02:37.3]} 14... Qf6 {[%clk 0:02:22.7]} 15. Qg3 {[%clk
0:02:37.1]} 15... Bd7 {[%clk 0:02:18.1]} 16. Nc5 {[%clk 0:02:28.7]} 16... Bc6
{[%clk 0:02:11.1]} 17. Ne4 {[%clk 0:02:29.3]} 17... Qd4 {[%clk 0:02:07.2]} 18.
Rad1 {[%clk 0:01:58.2]} 18... O-O-O {[%clk 0:02:01.9]} 19. Nd6+ {[%clk 0:01:59]}
19... Rxd6 {[%clk 0:01:54.4]} 20. Qxd6 {[%clk 0:01:57.5]} 20... Rg8 {[%clk
0:01:44]} 21. Bb5 {[%clk 0:00:56]} 21... Rxg2+ {[%clk 0:01:23.4]} 22. Kxg2
{[%clk 0:00:55.2]} 22... Nf4+ {[%clk 0:01:13.4]} 23. Kg3 {[%clk 0:00:49]} 23...
Nh5+ {[%clk 0:01:10.7]} 24. Kh3 {[%clk 0:00:43.7]} 24... Nf4+ {[%clk 0:00:46.7]}
25. Kg4 {[%clk 0:00:36.6]} 25... f5+ {[%clk 0:00:21.5]} 26. Kg5 {[%clk
0:00:17.9]} 26... Nh3+ {[%clk 0:00:18.6]} 27. Kh6 {[%clk 0:00:19.1]} 27... Qf6+
{[%clk 0:00:18.2]} 28. Kxh7 {[%clk 0:00:20.4]} 28... Ng5+ {[%clk 0:00:18.7]} 29.
Kg8 {[%clk 0:00:19.1]} 29... Qf7+ {[%clk 0:00:19.8]} 30. Kh8 {[%clk 0:00:20.5]}
30... Qh7# {[%clk 0:00:20.9]} 0-1

[Event "*** Titled Tuesday 3|2 Blitz"]
[Site "Chess.com"]
[Date "2016.08.02"]
[Round "2"]
[White "Carolina-moon"]
[Black "calemcc"]
[Result "0-1"]
[WhiteElo "2045"]
[BlackElo "2125"]
[TimeControl "180+2"]
[EndTime "11:23:16 PDT"]
[Termination "calemcc won on time"]

1. e4 {[%clk 0:03:01.9]} 1... e6 {[%clk 0:02:57.8]} 2. Nf3 {[%clk 0:03:02.1]}
2... d5 {[%clk 0:02:59.1]} 3. Nc3 {[%clk 0:03:03.7]} 3... Nf6 {[%clk 0:02:59.6]}
4. e5 {[%clk 0:03:05.2]} 4... Nfd7 {[%clk 0:03:01.1]} 5. d4 {[%clk 0:03:06.8]}
5... c5 {[%clk 0:03:02.8]} 6. dxc5 {[%clk 0:03:08.4]} 6... Nc6 {[%clk
0:03:03.2]} 7. Bf4 {[%clk 0:03:08.4]} 7... Nxc5 {[%clk 0:03:02.4]} 8. Qd2 {[%clk
0:03:08.9]} 8... Be7 {[%clk 0:03:03.3]} 9. h4 {[%clk 0:03:09.5]} 9... f6 {[%clk
0:02:50.5]} 10. O-O-O {[%clk 0:02:58.2]} 10... fxe5 {[%clk 0:02:44.8]} 11. Nxe5
{[%clk 0:02:58.9]} 11... Bf6 {[%clk 0:02:41.1]} 12. Bb5 {[%clk 0:02:49.4]} 12...
Qb6 {[%clk 0:02:33.3]} 13. Rhe1 {[%clk 0:02:29.1]} 13... O-O {[%clk 0:02:26.9]}
14. Bd3 {[%clk 0:01:39.2]} 14... Nxe5 {[%clk 0:02:13.4]} 15. Bxe5 {[%clk
0:01:39.3]} 15... Bxe5 {[%clk 0:02:13.7]} 16. Rxe5 {[%clk 0:01:39.9]} 16... Rxf2
{[%clk 0:02:11.7]} 17. Qe1 {[%clk 0:00:53.4]} 17... Nxd3+ {[%clk 0:01:51.8]} 18.
Rxd3 {[%clk 0:00:51.8]} 18... Bd7 {[%clk 0:01:51.9]} 19. Rg5 {[%clk 0:00:46.9]}
19... Raf8 {[%clk 0:01:47.5]} 20. Rdg3 {[%clk 0:00:38.5]} 20... g6 {[%clk
0:01:15.7]} 21. Qe5 {[%clk 0:00:23.9]} 21... Rf1+ {[%clk 0:01:09.8]} 22. Kd2
{[%clk 0:00:25.1]} 22... Qf2+ {[%clk 0:00:53]} 23. Ne2 {[%clk 0:00:25.1]} 23...
Qe1+ {[%clk 0:00:52.2]} 24. Ke3 {[%clk 0:00:18.3]} 24... Qf2+ {[%clk 0:00:34.2]}
25. Kd2 {[%clk 0:00:16.2]} 25... Qf6 {[%clk 0:00:21.7]} 26. Qe3 {[%clk
0:00:07.8]} 26... Qxb2 {[%clk 0:00:14.5]} 27. h5 {[%clk 0:00:06.9]} 27... Qb4+
{[%clk 0:00:14.8]} 28. c3 {[%clk 0:00:03]} 28... Qb2+ {[%clk 0:00:15.2]} 29. Kd3
{[%clk 0:00:04.5]} 29... Rd1+ {[%clk 0:00:15.7]} 0-1

[Event "*** Titled Tuesday 3|2 Blitz"]
[Site "Chess.com"]
[Date "2016.08.02"]
[Round "2"]
[White "FairChess_on_YouTube"]
[Black "DeviatkinAndrey"]
[Result "0-1"]
[WhiteElo "2701"]
[BlackElo "2501"]
[TimeControl "180+2"]
[EndTime "11:23:26 PDT"]
[Termination "DeviatkinAndrey won by resignation"]

1. e4 {[%clk 0:03:01.9]} 1... c6 {[%clk 0:03:00.4]} 2. Nf3 {[%clk 0:03:01.1]}
2... d5 {[%clk 0:03:01.3]} 3. Nc3 {[%clk 0:03:02.6]} 3... Bg4 {[%clk 0:03:00.8]}
4. h3 {[%clk 0:03:03.9]} 4... Bh5 {[%clk 0:03:01.9]} 5. g4 {[%clk 0:03:00.4]}
5... Bg6 {[%clk 0:03:02.3]} 6. Qe2 {[%clk 0:02:59.8]} 6... e6 {[%clk 0:02:49.2]}
7. d3 {[%clk 0:02:56.9]} 7... Bb4 {[%clk 0:02:25.6]} 8. Bd2 {[%clk 0:02:56.9]}
8... Ne7 {[%clk 0:02:21.7]} 9. Bg2 {[%clk 0:02:55.9]} 9... Nd7 {[%clk
0:02:21.2]} 10. h4 {[%clk 0:02:48.4]} 10... h5 {[%clk 0:02:20.8]} 11. g5 {[%clk
0:02:49.7]} 11... Qc7 {[%clk 0:02:13.4]} 12. O-O-O {[%clk 0:02:37.8]} 12...
O-O-O {[%clk 0:02:04.4]} 13. Kb1 {[%clk 0:02:38.6]} 13... Bd6 {[%clk 0:02:05.4]}
14. Rhe1 {[%clk 0:02:32.1]} 14... Bf4 {[%clk 0:02:01.4]} 15. exd5 {[%clk
0:02:28.7]} 15... Nxd5 {[%clk 0:02:01.3]} 16. Nxd5 {[%clk 0:02:22.9]} 16... cxd5
{[%clk 0:01:55.8]} 17. Bxf4 {[%clk 0:02:23.5]} 17... Qxf4 {[%clk 0:01:56.4]} 18.
Qe3 {[%clk 0:02:24.4]} 18... Qxe3 {[%clk 0:01:47.6]} 19. Rxe3 {[%clk 0:02:26.3]}
19... Rhe8 {[%clk 0:01:37.1]} 20. Bh3 {[%clk 0:02:26.1]} 20... Kc7 {[%clk
0:01:22.8]} 21. Rde1 {[%clk 0:02:23.8]} 21... Kd6 {[%clk 0:01:24.1]} 22. Ne5
{[%clk 0:02:20.5]} 22... Nxe5 {[%clk 0:01:24.5]} 23. Rxe5 {[%clk 0:02:22.4]}
23... Re7 {[%clk 0:01:17.6]} 24. f4 {[%clk 0:02:21.9]} 24... Rde8 {[%clk
0:01:18.4]} 25. Kc1 {[%clk 0:01:59.9]} 25... f6 {[%clk 0:01:05.6]} 26. R5e3
{[%clk 0:02:00.2]} 26... e5 {[%clk 0:01:06]} 27. f5 {[%clk 0:01:56.6]} 27... Bf7
{[%clk 0:01:05.7]} 28. g6 {[%clk 0:01:53.5]} 28... Bg8 {[%clk 0:01:06.3]} 29. d4
{[%clk 0:01:50.1]} 29... exd4 {[%clk 0:01:01.3]} 30. Rxe7 {[%clk 0:01:52]} 30...
Rxe7 {[%clk 0:01:02.9]} 31. Rxe7 {[%clk 0:01:43.2]} 31... Kxe7 {[%clk
0:01:04.1]} 32. Kd2 {[%clk 0:01:12.7]} 32... Kd6 {[%clk 0:01:05.3]} 33. Kd3
{[%clk 0:01:13.9]} 33... Ke5 {[%clk 0:01:06.7]} 34. b4 {[%clk 0:00:32.3]} 34...
b6 {[%clk 0:01:07]} 35. a4 {[%clk 0:00:32]} 35... Kf4 {[%clk 0:01:04.5]} 36.
Kxd4 {[%clk 0:00:18.9]} 36... Kg3 {[%clk 0:01:05.8]} 37. Bf1 {[%clk 0:00:18.9]}
37... Kxh4 {[%clk 0:01:06.5]} 38. Be2 {[%clk 0:00:13.5]} 38... Kg5 {[%clk
0:01:03.4]} 39. Bf3 {[%clk 0:00:12.7]} 39... h4 {[%clk 0:01:02.3]} 40. a5 {[%clk
0:00:13.6]} 40... Kxf5 {[%clk 0:01:01.7]} 0-1

[Event "*** Titled Tuesday 3|2 Blitz"]
[Site "Chess.com"]
[Date "2016.08.02"]
[Round "2"]
[White "LaStreetCmaMaison"]
[Black "SabinoBrunello"]
[Result "1/2-1/2"]
[WhiteElo "2489"]
[BlackElo "2593"]
[TimeControl "180+2"]
[EndTime "11:23:35 PDT"]
[Termination "Game drawn by repetition"]

1. Nf3 {[%clk 0:03:01.9]} 1... d5 {[%clk 0:03:00.6]} 2. g3 {[%clk 0:03:01.3]}
2... c6 {[%clk 0:03:00.6]} 3. Bg2 {[%clk 0:03:02.3]} 3... Bg4 {[%clk 0:03:02.1]}
4. O-O {[%clk 0:03:03]} 4... Nd7 {[%clk 0:03:02]} 5. h3 {[%clk 0:03:04.1]} 5...
Bxf3 {[%clk 0:03:02.7]} 6. Bxf3 {[%clk 0:03:06]} 6... e5 {[%clk 0:03:01.4]} 7.
d3 {[%clk 0:03:06.1]} 7... Ngf6 {[%clk 0:03:02]} 8. e4 {[%clk 0:03:03.9]} 8...
dxe4 {[%clk 0:03:02.3]} 9. dxe4 {[%clk 0:03:03.1]} 9... Be7 {[%clk 0:03:04]} 10.
Qe2 {[%clk 0:02:55.3]} 10... O-O {[%clk 0:03:05.2]} 11. Be3 {[%clk 0:02:53.6]}
11... Qc7 {[%clk 0:03:05]} 12. Nd2 {[%clk 0:02:53.3]} 12... Nc5 {[%clk
0:03:04.5]} 13. a4 {[%clk 0:02:50.3]} 13... Rfd8 {[%clk 0:03:03.2]} 14. a5
{[%clk 0:02:44.7]} 14... Ne6 {[%clk 0:03:03.9]} 15. c3 {[%clk 0:02:43.9]} 15...
Bc5 {[%clk 0:03:04.7]} 16. Nc4 {[%clk 0:02:40.7]} 16... Bxe3 {[%clk 0:03:03.8]}
17. Qxe3 {[%clk 0:02:42.6]} 17... Nd7 {[%clk 0:02:57.7]} 18. Bg4 {[%clk
0:02:40.3]} 18... Nef8 {[%clk 0:02:56.6]} 19. Rfd1 {[%clk 0:02:33.8]} 19... b5
{[%clk 0:02:52.9]} 20. axb6 {[%clk 0:02:33.1]} 20... axb6 {[%clk 0:02:53.3]} 21.
Rxa8 {[%clk 0:02:27.5]} 21... Rxa8 {[%clk 0:02:55.2]} 22. Kg2 {[%clk 0:02:26.9]}
22... b5 {[%clk 0:02:46.6]} 23. Bxd7 {[%clk 0:02:24.4]} 23... Nxd7 {[%clk
0:02:45.6]} 24. Rxd7 {[%clk 0:02:24.4]} 24... Qxd7 {[%clk 0:02:46.5]} 25. Nb6
{[%clk 0:02:25.6]} 25... Qb7 {[%clk 0:02:44]} 26. Nxa8 {[%clk 0:02:25.5]} 26...
Qxa8 {[%clk 0:02:45]} 27. Qc5 {[%clk 0:02:25.5]} 27... Qe8 {[%clk 0:02:44.6]}
28. Qd6 {[%clk 0:02:21]} 28... f6 {[%clk 0:02:40.5]} 29. g4 {[%clk 0:02:14.4]}
29... Kf7 {[%clk 0:02:40]} 30. Qc7+ {[%clk 0:02:07.7]} 30... Kg6 {[%clk
0:02:38.8]} 31. h4 {[%clk 0:02:01.6]} 31... h5 {[%clk 0:02:29.2]} 32. gxh5+
{[%clk 0:01:57.7]} 32... Kh6 {[%clk 0:02:30.5]} 33. Kg3 {[%clk 0:01:54.4]} 33...
Qe6 {[%clk 0:02:31]} 34. f3 {[%clk 0:01:52.7]} 34... Qc4 {[%clk 0:02:20.2]} 35.
Qc8 {[%clk 0:01:46]} 35... Kxh5 {[%clk 0:02:17]} 36. Qh8+ {[%clk 0:01:17.5]}
36... Kg6 {[%clk 0:02:17.2]} 37. h5+ {[%clk 0:01:04.1]} 37... Kf7 {[%clk
0:02:17.7]} 38. Qc8 {[%clk 0:01:00.3]} 38... Qc5 {[%clk 0:01:57.5]} 39. Qd7+
{[%clk 0:00:52.9]} 39... Kf8 {[%clk 0:01:58.1]} 40. Qd8+ {[%clk 0:00:53.2]}
40... Kf7 {[%clk 0:01:59.4]} 41. Qd7+ {[%clk 0:00:54.4]} 41... Kf8 {[%clk
0:02:00.6]} 42. Kg4 {[%clk 0:00:51.2]} 42... Qe3 {[%clk 0:01:45.2]} 43. Qd8+
{[%clk 0:00:43.4]} 43... Kf7 {[%clk 0:01:45.7]} 44. Qd7+ {[%clk 0:00:42.9]}
44... Kf8 {[%clk 0:01:47.1]} 45. Qc8+ {[%clk 0:00:36]} 45... Kf7 {[%clk
0:01:47.7]} 46. Qc7+ {[%clk 0:00:36.7]} 46... Kf8 {[%clk 0:01:48.6]} 47. Qd8+
{[%clk 0:00:27.9]} 47... Kf7 {[%clk 0:01:49.6]} 48. Qd7+ {[%clk 0:00:28.8]}
48... Kf8 {[%clk 0:01:50.9]} 49. Qd6+ {[%clk 0:00:29.7]} 49... Kf7 {[%clk
0:01:51.7]} 50. Qd7+ {[%clk 0:00:30]} 50... Kf8 {[%clk 0:01:52.9]} 51. Qd8+
{[%clk 0:00:28.2]} 51... Kf7 {[%clk 0:01:54]} 52. Qc7+ {[%clk 0:00:25.6]} 52...
Kf8 {[%clk 0:01:55]} 53. Qd8+ {[%clk 0:00:15]} 53... Kf7 {[%clk 0:01:55.8]} 54.
Qd7+ {[%clk 0:00:16.5]} 54... Kf8 {[%clk 0:01:56.7]} 1/2-1/2

[Event "*** Titled Tuesday 3|2 Blitz"]
[Site "Chess.com"]
[Date "2016.08.02"]
[Round "2"]
[White "maciek_92"]
[Black "Sven_Tica"]
[Result "1-0"]
[WhiteElo "2605"]
[BlackElo "2424"]
[TimeControl "180+2"]
[EndTime "11:23:47 PDT"]
[Termination "maciek_92 won by resignation"]

1. c4 {[%clk 0:03:00]} 1... Nf6 {[%clk 0:02:57.6]} 2. g3 {[%clk 0:03:00]} 2...
e6 {[%clk 0:02:58.7]} 3. Nf3 {[%clk 0:02:59.9]} 3... d5 {[%clk 0:03:00.4]} 4.
Bg2 {[%clk 0:03:01]} 4... Be7 {[%clk 0:03:01.9]} 5. O-O {[%clk 0:03:02.3]} 5...
O-O {[%clk 0:03:03.6]} 6. Qc2 {[%clk 0:03:03]} 6... c6 {[%clk 0:03:02.5]} 7. d4
{[%clk 0:03:04.1]} 7... b6 {[%clk 0:03:04]} 8. Bf4 {[%clk 0:03:04.6]} 8... Bb7
{[%clk 0:02:59.2]} 9. Rd1 {[%clk 0:03:05.6]} 9... a5 {[%clk 0:02:56.7]} 10. Nc3
{[%clk 0:03:03.6]} 10... Na6 {[%clk 0:02:57]} 11. a3 {[%clk 0:03:02.7]} 11...
Rc8 {[%clk 0:02:51.4]} 12. Ne5 {[%clk 0:03:03.1]} 12... Nh5 {[%clk 0:02:33.8]}
13. Be3 {[%clk 0:02:58.2]} 13... f6 {[%clk 0:02:27.4]} 14. Nf3 {[%clk
0:02:53.9]} 14... g6 {[%clk 0:02:28.6]} 15. Bh6 {[%clk 0:02:45.8]} 15... Re8
{[%clk 0:02:22.4]} 16. Nd2 {[%clk 0:02:34.8]} 16... Bf8 {[%clk 0:02:07.5]} 17.
Bxf8 {[%clk 0:02:29.1]} 17... Rxf8 {[%clk 0:02:08.8]} 18. e4 {[%clk 0:02:30.6]}
18... dxc4 {[%clk 0:02:00.4]} 19. Nxc4 {[%clk 0:02:30.5]} 19... Qc7 {[%clk
0:02:00]} 20. e5 {[%clk 0:02:29.5]} 20... Rcd8 {[%clk 0:01:54.6]} 21. Ne4 {[%clk
0:02:26.9]} 21... c5 {[%clk 0:01:50.1]} 22. Ncd6 {[%clk 0:02:25.3]} 22... Bxe4
{[%clk 0:01:48]} 23. Qxe4 {[%clk 0:02:20.9]} 23... cxd4 {[%clk 0:01:44.3]} 24.
Rac1 {[%clk 0:02:17.5]} 24... Nc5 {[%clk 0:01:38.3]} 25. Qxd4 {[%clk 0:02:17.6]}
25... fxe5 {[%clk 0:01:31.6]} 26. Qxe5 {[%clk 0:02:16.7]} 26... Qe7 {[%clk
0:01:13.3]} 27. b4 {[%clk 0:02:12.6]} 27... axb4 {[%clk 0:01:08.5]} 28. axb4
{[%clk 0:02:13.4]} 28... Nb3 {[%clk 0:01:03.9]} 29. Rb1 {[%clk 0:02:09.9]} 29...
Rd7 {[%clk 0:00:26.1]} 30. Rxb3 {[%clk 0:02:06.5]} 30... Rfd8 {[%clk 0:00:27.1]}
31. Rbd3 {[%clk 0:02:07]} 31... Nf6 {[%clk 0:00:28.3]} 32. Bc6 {[%clk
0:02:03.7]} 32... Ng4 {[%clk 0:00:29.5]} 33. Qf4 {[%clk 0:02:01.6]} 33... e5
{[%clk 0:00:30.6]} 34. Qxg4 {[%clk 0:02:02.3]} 34... Rxd6 {[%clk 0:00:32]} 35.
Rxd6 {[%clk 0:02:03.7]} 35... Rxd6 {[%clk 0:00:33.9]} 36. Rxd6 {[%clk
0:02:05.2]} 36... Qxd6 {[%clk 0:00:35.8]} 37. Qc4+ {[%clk 0:02:06.1]} 37... Kg7
{[%clk 0:00:36.5]} 38. b5 {[%clk 0:02:06.9]} 38... h5 {[%clk 0:00:36]} 39. Qd5
{[%clk 0:02:03.4]} 39... Qf6 {[%clk 0:00:30.2]} 40. Qf3 {[%clk 0:01:59.1]} 40...
Qd6 {[%clk 0:00:30.6]} 41. Qd5 {[%clk 0:01:57.5]} 41... Qf6 {[%clk 0:00:30.7]}
42. Kg2 {[%clk 0:01:57.4]} 42... h4 {[%clk 0:00:29]} 43. gxh4 {[%clk 0:01:58]}
43... Qf4 {[%clk 0:00:28.9]} 44. Qe4 {[%clk 0:01:56.7]} 44... Qf6 {[%clk
0:00:28.4]} 45. Qg4 {[%clk 0:01:57.2]} 45... Kh6 {[%clk 0:00:27.3]} 46. Be4
{[%clk 0:01:44.8]} 46... Qd6 {[%clk 0:00:28.2]} 47. Qg5+ {[%clk 0:01:37.2]} 1-0

[Event "*** Titled Tuesday 3|2 Blitz"]
[Site "Chess.com"]
[Date "2016.08.02"]
[Round "2"]
[White "Newlight1"]
[Black "MyleneFarmer"]
[Result "0-1"]
[WhiteElo "2382"]
[BlackElo "2365"]
[TimeControl "180+2"]
[EndTime "11:23:49 PDT"]
[Termination "MyleneFarmer won by resignation"]

1. e4 {[%clk 0:03:01.8]} 1... c5 {[%clk 0:02:57.3]} 2. b4 {[%clk 0:03:02.5]}
2... cxb4 {[%clk 0:02:57.5]} 3. a3 {[%clk 0:03:03.8]} 3... d5 {[%clk 0:02:59.2]}
4. exd5 {[%clk 0:03:04.8]} 4... Qxd5 {[%clk 0:02:59.8]} 5. Nf3 {[%clk
0:03:05.2]} 5... Bg4 {[%clk 0:02:59.3]} 6. axb4 {[%clk 0:03:05.5]} 6... Nc6
{[%clk 0:02:58.1]} 7. Nc3 {[%clk 0:02:43.9]} 7... Qe6+ {[%clk 0:02:48.6]} 8. Be2
{[%clk 0:02:38.7]} 8... Bxf3 {[%clk 0:02:48.9]} 9. gxf3 {[%clk 0:02:40.6]} 9...
Nd4 {[%clk 0:02:50.4]} 10. Kf1 {[%clk 0:02:14.3]} 10... Nxe2 {[%clk 0:02:42.9]}
11. Qxe2 {[%clk 0:02:15.5]} 11... Qxe2+ {[%clk 0:02:43.8]} 12. Kxe2 {[%clk
0:02:16.4]} 12... a6 {[%clk 0:02:42.3]} 13. Nd5 {[%clk 0:01:53.8]} 13... O-O-O
{[%clk 0:02:35.8]} 14. Nb6+ {[%clk 0:01:35.1]} 14... Kc7 {[%clk 0:02:34.8]} 15.
Nc4 {[%clk 0:01:35.6]} 15... Nf6 {[%clk 0:02:29.3]} 16. c3 {[%clk 0:01:34]}
16... Nd5 {[%clk 0:02:23.9]} 17. Ra3 {[%clk 0:01:13.8]} 17... e5 {[%clk
0:02:10.5]} 18. d3 {[%clk 0:01:06.8]} 18... f6 {[%clk 0:02:09.2]} 19. Be3 {[%clk
0:01:04.8]} 19... Be7 {[%clk 0:01:57.1]} 20. Rg1 {[%clk 0:01:04.9]} 20... g5
{[%clk 0:01:58.1]} 21. Rb1 {[%clk 0:01:02.7]} 21... Ra8 {[%clk 0:01:43.3]} 22.
Bc5 {[%clk 0:01:01]} 22... Rhd8 {[%clk 0:01:39.3]} 23. Bxe7 {[%clk 0:01:01]}
23... Nxe7 {[%clk 0:01:41.2]} 24. b5 {[%clk 0:00:59.9]} 24... axb5 {[%clk
0:01:40.1]} 25. Rxa8 {[%clk 0:01:00.8]} 25... Rxa8 {[%clk 0:01:42]} 26. Rxb5
{[%clk 0:01:01.8]} 26... Ra2+ {[%clk 0:01:34]} 27. Rb2 {[%clk 0:01:02.6]} 27...
Nd5 {[%clk 0:01:26.4]} 28. Rxa2 {[%clk 0:00:53.4]} 28... Nxc3+ {[%clk
0:01:27.5]} 29. Ke3 {[%clk 0:00:55.2]} 29... Nxa2 {[%clk 0:01:28.7]} 30. Ke4
{[%clk 0:00:55.5]} 30... b5 {[%clk 0:01:21.7]} 31. Ne3 {[%clk 0:00:50.3]} 31...
Nc3+ {[%clk 0:01:18.4]} 32. Kf5 {[%clk 0:00:50.9]} 32... b4 {[%clk 0:01:17.4]}
33. Kxf6 {[%clk 0:00:50]} 33... b3 {[%clk 0:01:18.8]} 34. Nc4 {[%clk 0:00:48.6]}
34... Kc6 {[%clk 0:01:13.6]} 35. Kxe5 {[%clk 0:00:49.1]} 35... Nd1 {[%clk
0:01:12.3]} 36. Kd4 {[%clk 0:00:40.2]} 36... b2 {[%clk 0:01:12.2]} 37. Nd2
{[%clk 0:00:36.9]} 37... Kb5 {[%clk 0:01:05.7]} 38. Nb1 {[%clk 0:00:27.4]} 38...
Kb4 {[%clk 0:01:06.4]} 39. Nd2 {[%clk 0:00:17.7]} 39... Nxf2 {[%clk 0:01:05]}
40. Ke3 {[%clk 0:00:16.8]} 40... Nd1+ {[%clk 0:01:02.4]} 41. Ke2 {[%clk
0:00:18.1]} 41... Nc3+ {[%clk 0:01:03.6]} 42. Ke3 {[%clk 0:00:19.2]} 42... Nd5+
{[%clk 0:00:52.6]} 43. Ke2 {[%clk 0:00:20.3]} 43... Kc3 {[%clk 0:00:52.1]} 44.
Nb1+ {[%clk 0:00:18.2]} 44... Kc2 {[%clk 0:00:53.6]} 45. Na3+ {[%clk 0:00:19.4]}
45... Kc1 {[%clk 0:00:55.2]} 46. d4 {[%clk 0:00:19.6]} 46... Nc3+ {[%clk
0:00:56.2]} 47. Kd3 {[%clk 0:00:20.5]} 47... Nb5 {[%clk 0:00:57.6]} 48. Nb1
{[%clk 0:00:17]} 48... Kxb1 {[%clk 0:00:58.5]} 0-1

[Event "*** Titled Tuesday 3|2 Blitz"]
[Site "Chess.com"]
[Date "2016.08.02"]
[Round "2"]
[White "alturas_pacificas"]
[Black "stefanodinn"]
[Result "1-0"]
[WhiteElo "2151"]
[BlackElo "2198"]
[TimeControl "180+2"]
[EndTime "11:23:52 PDT"]
[Termination "alturas_pacificas won on time"]

1. d4 {[%clk 0:03:01.9]} 1... Nf6 {[%clk 0:02:59.9]} 2. Bf4 {[%clk 0:03:02.8]}
2... c5 {[%clk 0:02:55.4]} 3. d5 {[%clk 0:03:02.2]} 3... d6 {[%clk 0:02:55.8]}
4. Nc3 {[%clk 0:03:02.9]} 4... g6 {[%clk 0:02:56.4]} 5. e4 {[%clk 0:03:04.4]}
5... Bg7 {[%clk 0:02:57.3]} 6. Bb5+ {[%clk 0:03:05.9]} 6... Bd7 {[%clk
0:02:56.4]} 7. a4 {[%clk 0:03:06.8]} 7... O-O {[%clk 0:02:57.1]} 8. Nf3 {[%clk
0:03:06.7]} 8... a6 {[%clk 0:02:54.4]} 9. Be2 {[%clk 0:03:08.1]} 9... Bg4 {[%clk
0:02:54.7]} 10. Nd2 {[%clk 0:03:09.3]} 10... Bxe2 {[%clk 0:02:54.9]} 11. Qxe2
{[%clk 0:03:11.2]} 11... Nbd7 {[%clk 0:02:54.3]} 12. O-O {[%clk 0:03:11.1]}
12... Ne8 {[%clk 0:02:37.1]} 13. Nc4 {[%clk 0:03:07.7]} 13... Nc7 {[%clk
0:02:29.8]} 14. Rfd1 {[%clk 0:02:56.6]} 14... f6 {[%clk 0:02:00.5]} 15. h3
{[%clk 0:02:52.4]} 15... Ne5 {[%clk 0:01:59.1]} 16. Bh2 {[%clk 0:02:36.8]} 16...
Nxc4 {[%clk 0:01:58.3]} 17. Qxc4 {[%clk 0:02:37.1]} 17... Qd7 {[%clk 0:01:56.6]}
18. a5 {[%clk 0:02:27]} 18... Kh8 {[%clk 0:01:47.1]} 19. f4 {[%clk 0:02:27.8]}
19... Nb5 {[%clk 0:01:36.3]} 20. Na4 {[%clk 0:02:01]} 20... Rae8 {[%clk
0:01:35.1]} 21. Nb6 {[%clk 0:01:58.6]} 21... Qc7 {[%clk 0:01:27.4]} 22. c3
{[%clk 0:01:59.4]} 22... f5 {[%clk 0:01:21]} 23. Re1 {[%clk 0:01:47.5]} 23...
Na7 {[%clk 0:01:00.8]} 24. e5 {[%clk 0:01:43.4]} 24... Nc8 {[%clk 0:00:59]} 25.
Nxc8 {[%clk 0:01:43.3]} 25... Qxc8 {[%clk 0:00:55.7]} 26. Bg3 {[%clk 0:01:43.8]}
26... Qd7 {[%clk 0:00:49.3]} 27. Ra3 {[%clk 0:01:26.8]} 27... e6 {[%clk
0:00:33.8]} 28. exd6 {[%clk 0:01:17.6]} 28... exd5 {[%clk 0:00:22.4]} 29. Qxd5
{[%clk 0:01:18.6]} 29... Rxe1+ {[%clk 0:00:23.3]} 30. Bxe1 {[%clk 0:01:20.5]}
30... Re8 {[%clk 0:00:21.3]} 31. Bf2 {[%clk 0:01:20.6]} 31... Qc6 {[%clk
0:00:03.6]} 32. Qxc6 {[%clk 0:01:19.4]} 32... bxc6 {[%clk 0:00:04.8]} 33. Bxc5
{[%clk 0:01:20.6]} 33... Kg8 {[%clk 0:00:04.6]} 34. Rb3 {[%clk 0:01:21.3]} 34...
Rd8 {[%clk 0:00:05.6]} 35. Rb7 {[%clk 0:01:21.5]} 35... Bf8 {[%clk 0:00:06.2]}
36. Rc7 {[%clk 0:01:05.9]} 36... Bxd6 {[%clk 0:00:05.3]} 37. Rxc6 {[%clk
0:01:07.2]} 37... Bxf4 {[%clk 0:00:05.7]} 38. Rxa6 {[%clk 0:01:03.2]} 38... Bg3
{[%clk 0:00:06.6]} 39. Kf1 {[%clk 0:00:55.3]} 39... Rd2 {[%clk 0:00:04.7]} 40.
Ra8+ {[%clk 0:00:49.5]} 40... Kf7 {[%clk 0:00:05.1]} 41. a6 {[%clk 0:00:49.8]}
41... Rxb2 {[%clk 0:00:03.7]} 42. a7 {[%clk 0:00:49.7]} 1-0